[Event "*** Titled Tuesday Blitz"]
[Site "Chess.com"]
[Date "2021.03.02"]
[Round "7"]
[White "zverr1"]
[Black "pavelalexandru07"]
[Result "0-1"]
[WhiteElo "2450"]
[BlackElo "2302"]
[TimeControl "180+1"]
[EndTime "11:19:39 PST"]
[Termination "pavelalexandru07 won by checkmate"]

1. e4 {[%clk 0:03:00.9]} 1... c5 {[%clk 0:02:58.7]} 2. Nf3 {[%clk 0:03:00.3]}
2... d6 {[%clk 0:02:57.9]} 3. Bb5+ {[%clk 0:02:59.3]} 3... Bd7 {[%clk
0:02:57.8]} 4. c4 {[%clk 0:02:57.3]} 4... Nf6 {[%clk 0:02:54.2]} 5. Nc3 {[%clk
0:02:56.2]} 5... e6 {[%clk 0:02:49.1]} 6. d4 {[%clk 0:02:55.4]} 6... cxd4 {[%clk
0:02:42.2]} 7. Nxd4 {[%clk 0:02:55.5]} 7... a6 {[%clk 0:02:42.8]} 8. Ba4 {[%clk
0:02:54.8]} 8... Nc6 {[%clk 0:02:38.7]} 9. O-O {[%clk 0:02:52.3]} 9... Rc8
{[%clk 0:02:32.9]} 10. Bxc6 {[%clk 0:02:35.3]} 10... Bxc6 {[%clk 0:02:27.7]} 11.
f3 {[%clk 0:02:35.7]} 11... Be7 {[%clk 0:02:26.8]} 12. Be3 {[%clk 0:02:36.2]}
12... O-O {[%clk 0:02:22.1]} 13. Qd2 {[%clk 0:02:36.7]} 13... Bd7 {[%clk
0:02:19.8]} 14. b3 {[%clk 0:02:32.3]} 14... Re8 {[%clk 0:02:13.7]} 15. Rad1
{[%clk 0:02:24.5]} 15... Bc6 {[%clk 0:02:12.9]} 16. Nde2 {[%clk 0:02:16.9]}
16... Qa5 {[%clk 0:02:07.3]} 17. Nd5 {[%clk 0:02:12.9]} 17... Qxd2 {[%clk
0:01:50.1]} 18. Nxe7+ {[%clk 0:02:05]} 18... Rxe7 {[%clk 0:01:49.3]} 19. Rxd2
{[%clk 0:02:03]} 19... d5 {[%clk 0:01:33.1]} 20. Bc5 {[%clk 0:01:56.4]} 20...
Ree8 {[%clk 0:01:30.6]} 21. exd5 {[%clk 0:01:30.8]} 21... exd5 {[%clk
0:01:29.3]} 22. cxd5 {[%clk 0:01:28.9]} 22... Bb5 {[%clk 0:01:24.8]} 23. Bd4
{[%clk 0:00:54.7]} 23... Rxe2 {[%clk 0:01:17.4]} 24. Rxe2 {[%clk 0:00:51]} 24...
Bxe2 {[%clk 0:01:17.4]} 25. Re1 {[%clk 0:00:51.9]} 25... Bb5 {[%clk 0:01:17]}
26. Bxf6 {[%clk 0:00:50.1]} 26... gxf6 {[%clk 0:01:16.3]} 27. a4 {[%clk
0:00:50.6]} 27... Bd7 {[%clk 0:01:10.7]} 28. Re7 {[%clk 0:00:50.7]} 28... Rd8
{[%clk 0:01:08.8]} 29. Kf2 {[%clk 0:00:50.5]} 29... Kf8 {[%clk 0:01:08.1]} 30.
Re3 {[%clk 0:00:51.4]} 30... Bf5 {[%clk 0:01:05.7]} 31. g4 {[%clk 0:00:48.3]}
31... Bb1 {[%clk 0:00:56.3]} 32. Rc3 {[%clk 0:00:36.4]} 32... Rxd5 {[%clk
0:00:50.2]} 33. Ke3 {[%clk 0:00:37.3]} 33... Rd7 {[%clk 0:00:48.2]} 34. f4
{[%clk 0:00:35.4]} 34... f5 {[%clk 0:00:44.9]} 35. g5 {[%clk 0:00:33.8]} 35...
Be4 {[%clk 0:00:44.2]} 36. h4 {[%clk 0:00:30.4]} 36... b5 {[%clk 0:00:42]} 37.
axb5 {[%clk 0:00:29.4]} 37... axb5 {[%clk 0:00:41.6]} 38. b4 {[%clk 0:00:30.3]}
38... Rd1 {[%clk 0:00:38]} 39. Rc8+ {[%clk 0:00:26.1]} 39... Kg7 {[%clk
0:00:38.1]} 40. h5 {[%clk 0:00:25.1]} 40... Rd3+ {[%clk 0:00:35.4]} 41. Ke2
{[%clk 0:00:24.7]} 41... Rh3 {[%clk 0:00:12.1]} 42. h6+ {[%clk 0:00:23.6]} 42...
Kg6 {[%clk 0:00:12.6]} 43. Rg8+ {[%clk 0:00:23.5]} 43... Kh5 {[%clk 0:00:13.1]}
44. Rg7 {[%clk 0:00:24.4]} 44... Kg4 {[%clk 0:00:13.4]} 45. Rxh7 {[%clk
0:00:14.5]} 45... Kxf4 {[%clk 0:00:13.3]} 46. Rg7 {[%clk 0:00:15.4]} 46... Ke5
{[%clk 0:00:10]} 47. Rxf7 {[%clk 0:00:12.9]} 47... f4 {[%clk 0:00:08.4]} 48. Kf2
{[%clk 0:00:10.5]} 48... Rh2+ {[%clk 0:00:07.2]} 49. Kg1 {[%clk 0:00:10.8]}
49... Rh1+ {[%clk 0:00:07.2]} 50. Kf2 {[%clk 0:00:11.4]} 50... f3 {[%clk
0:00:05.9]} 51. Rf6 {[%clk 0:00:11.4]} 51... Rh2+ {[%clk 0:00:05.4]} 52. Kg1
{[%clk 0:00:10.2]} 52... Rg2+ {[%clk 0:00:05.5]} 53. Kf1 {[%clk 0:00:08.4]}
53... Rxg5 {[%clk 0:00:06]} 54. Rb6 {[%clk 0:00:06.9]} 54... Kf4 {[%clk
0:00:05.2]} 55. Kf2 {[%clk 0:00:05.8]} 55... Rg2+ {[%clk 0:00:05.2]} 56. Kf1
{[%clk 0:00:06]} 56... Rh2 {[%clk 0:00:05.6]} 57. Rxb5 {[%clk 0:00:04.8]} 57...
Ke3 {[%clk 0:00:03.7]} 58. Rb6 {[%clk 0:00:02.9]} 58... Rh1# {[%clk 0:00:03.6]}
0-1

[Event "*** Titled Tuesday Blitz"]
[Site "Chess.com"]
[Date "2021.03.02"]
[Round "7"]
[White "The_Machine04"]
[Black "Fiona"]
[Result "0-1"]
[WhiteElo "2405"]
[BlackElo "2273"]
[TimeControl "180+1"]
[EndTime "11:19:39 PST"]
[Termination "Fiona won on time"]

1. d4 {[%clk 0:03:00.9]} 1... d6 {[%clk 0:02:59.9]} 2. Nf3 {[%clk 0:02:58.7]}
2... Bg4 {[%clk 0:02:59.4]} 3. Nbd2 {[%clk 0:02:58.3]} 3... Nd7 {[%clk
0:02:57.2]} 4. h3 {[%clk 0:02:57.3]} 4... Bh5 {[%clk 0:02:52.8]} 5. e4 {[%clk
0:02:54.6]} 5... e5 {[%clk 0:02:48.4]} 6. c3 {[%clk 0:02:54]} 6... Ngf6 {[%clk
0:02:45.7]} 7. Be2 {[%clk 0:02:52]} 7... Be7 {[%clk 0:02:44.3]} 8. dxe5 {[%clk
0:02:52]} 8... dxe5 {[%clk 0:02:41.7]} 9. O-O {[%clk 0:02:51.8]} 9... Bg6 {[%clk
0:02:37.2]} 10. Bd3 {[%clk 0:02:45.2]} 10... O-O {[%clk 0:02:19.9]} 11. Bc2
{[%clk 0:02:36.8]} 11... c6 {[%clk 0:02:19.6]} 12. Re1 {[%clk 0:02:36.4]} 12...
Qc7 {[%clk 0:02:19.9]} 13. Qe2 {[%clk 0:02:36.4]} 13... Nc5 {[%clk 0:02:14.6]}
14. a4 {[%clk 0:02:33.3]} 14... Rad8 {[%clk 0:02:10.6]} 15. b4 {[%clk
0:02:26.2]} 15... Ne6 {[%clk 0:02:08.3]} 16. g3 {[%clk 0:02:25]} 16... a5 {[%clk
0:01:43.4]} 17. Ba3 {[%clk 0:02:00.3]} 17... axb4 {[%clk 0:01:38.9]} 18. cxb4
{[%clk 0:02:01.2]} 18... Nd4 {[%clk 0:01:32.7]} 19. Nxd4 {[%clk 0:01:56.9]}
19... Rxd4 {[%clk 0:01:33.6]} 20. Nf3 {[%clk 0:01:47.2]} 20... Rd7 {[%clk
0:01:29.3]} 21. Red1 {[%clk 0:01:35.4]} 21... Rfd8 {[%clk 0:01:29.5]} 22. Rxd7
{[%clk 0:01:34.6]} 22... Rxd7 {[%clk 0:01:30.4]} 23. b5 {[%clk 0:01:18.8]} 23...
Bxa3 {[%clk 0:01:22.5]} 24. Rxa3 {[%clk 0:01:19.7]} 24... cxb5 {[%clk
0:01:14.6]} 25. axb5 {[%clk 0:01:18.5]} 25... h6 {[%clk 0:01:12.2]} 26. Kg2
{[%clk 0:01:07.1]} 26... Qc5 {[%clk 0:01:05.1]} 27. Ra8+ {[%clk 0:01:04.3]}
27... Kh7 {[%clk 0:01:05.6]} 28. Rb8 {[%clk 0:00:33.6]} 28... Qc7 {[%clk
0:00:53.7]} 29. Ra8 {[%clk 0:00:25.2]} 29... Qc3 {[%clk 0:00:45.8]} 30. Rb8
{[%clk 0:00:22.2]} 30... Bh5 {[%clk 0:00:44]} 31. Bb1 {[%clk 0:00:14.7]} 31...
g6 {[%clk 0:00:18.5]} 32. g4 {[%clk 0:00:11.8]} 32... Nxg4 {[%clk 0:00:18.4]}
33. hxg4 {[%clk 0:00:12.7]} 33... Bxg4 {[%clk 0:00:19.2]} 34. Rf8 {[%clk
0:00:11.4]} 34... Kg7 {[%clk 0:00:18.9]} 35. Rb8 {[%clk 0:00:10.1]} 35... h5
{[%clk 0:00:18.8]} 36. Qe3 {[%clk 0:00:08.7]} 36... Qc7 {[%clk 0:00:17.7]} 37.
Ra8 {[%clk 0:00:08.1]} 37... b6 {[%clk 0:00:17]} 38. Ba2 {[%clk 0:00:05.9]}
38... Qd6 {[%clk 0:00:16.9]} 39. Bd5 {[%clk 0:00:05.2]} 39... Qf6 {[%clk
0:00:16.7]} 40. Bc6 {[%clk 0:00:04.3]} 40... Rd1 {[%clk 0:00:14.3]} 41. Ra7
{[%clk 0:00:03.6]} 41... h4 {[%clk 0:00:13.2]} 42. Bd5 {[%clk 0:00:03.2]} 42...
h3+ {[%clk 0:00:13.2]} 43. Kh2 {[%clk 0:00:03.2]} 43... Bxf3 {[%clk 0:00:11.9]}
44. Rxf7+ {[%clk 0:00:02.6]} 44... Qxf7 {[%clk 0:00:12.2]} 45. Bxf7 {[%clk
0:00:03.2]} 45... Rh1+ {[%clk 0:00:11.7]} 46. Kg3 {[%clk 0:00:02.8]} 46... Bg2
{[%clk 0:00:10.4]} 47. Qg5 {[%clk 0:00:01.8]} 47... Kxf7 {[%clk 0:00:10.3]} 48.
Qxe5 {[%clk 0:00:02]} 48... Rb1 {[%clk 0:00:08.3]} 49. Qc7+ {[%clk 0:00:02.9]}
49... Kg8 {[%clk 0:00:07.3]} 50. Qxb6 {[%clk 0:00:03.6]} 50... Rb3+ {[%clk
0:00:07.5]} 51. Kh2 {[%clk 0:00:03.1]} 51... Rb2 {[%clk 0:00:06.8]} 52. Qd8+
{[%clk 0:00:03.3]} 52... Kh7 {[%clk 0:00:06.3]} 53. Qd7+ {[%clk 0:00:03.3]}
53... Kh6 {[%clk 0:00:05.6]} 54. Qd6 {[%clk 0:00:01.6]} 54... Rxf2 {[%clk
0:00:04.4]} 0-1

[Event "*** Titled Tuesday Blitz"]
[Site "Chess.com"]
[Date "2021.03.02"]
[Round "7"]
[White "IngOscarArdila"]
[Black "Coiote53"]
[Result "1-0"]
[WhiteElo "2249"]
[BlackElo "2349"]
[TimeControl "180+1"]
[EndTime "11:19:39 PST"]
[Termination "IngOscarArdila won on time"]

1. d4 {[%clk 0:02:58.2]} 1... Nf6 {[%clk 0:02:59.9]} 2. c4 {[%clk 0:02:56.5]}
2... g6 {[%clk 0:02:59.6]} 3. Nc3 {[%clk 0:02:56.5]} 3... d5 {[%clk 0:02:59.5]}
4. cxd5 {[%clk 0:02:55.3]} 4... Nxd5 {[%clk 0:03:00.4]} 5. e4 {[%clk 0:02:55.7]}
5... Nxc3 {[%clk 0:03:00.9]} 6. bxc3 {[%clk 0:02:56.6]} 6... Bg7 {[%clk
0:03:01.8]} 7. Bc4 {[%clk 0:02:56.9]} 7... c5 {[%clk 0:03:02.1]} 8. Ne2 {[%clk
0:02:57]} 8... Nc6 {[%clk 0:03:02.6]} 9. Be3 {[%clk 0:02:57.1]} 9... O-O {[%clk
0:03:00.7]} 10. O-O {[%clk 0:02:56.5]} 10... Bg4 {[%clk 0:03:01.3]} 11. f3
{[%clk 0:02:56.7]} 11... Bd7 {[%clk 0:03:01.9]} 12. Qd2 {[%clk 0:02:49.8]} 12...
Qa5 {[%clk 0:02:58.5]} 13. Qb2 {[%clk 0:02:46.1]} 13... b6 {[%clk 0:02:44.3]}
14. Rfd1 {[%clk 0:02:39.4]} 14... Rfd8 {[%clk 0:02:38.2]} 15. Rac1 {[%clk
0:02:37.9]} 15... e6 {[%clk 0:02:36]} 16. Qb3 {[%clk 0:02:27.7]} 16... Rac8
{[%clk 0:02:31.8]} 17. d5 {[%clk 0:02:20.4]} 17... exd5 {[%clk 0:02:25.6]} 18.
Bxd5 {[%clk 0:02:20.3]} 18... Be8 {[%clk 0:02:23]} 19. Bg5 {[%clk 0:02:17.2]}
19... Rd6 {[%clk 0:02:18]} 20. Bd2 {[%clk 0:02:06.6]} 20... Rcd8 {[%clk
0:02:12.7]} 21. Bf4 {[%clk 0:02:05]} 21... Ne5 {[%clk 0:02:02.6]} 22. Bg5 {[%clk
0:02:04.8]} 22... R8d7 {[%clk 0:01:57.6]} 23. Kh1 {[%clk 0:01:43.3]} 23... c4
{[%clk 0:01:53.5]} 24. Qc2 {[%clk 0:01:38.4]} 24... Nd3 {[%clk 0:01:53.8]} 25.
Rxd3 {[%clk 0:01:26.3]} 25... cxd3 {[%clk 0:01:54.7]} 26. Qxd3 {[%clk
0:01:26.7]} 26... Qxa2 {[%clk 0:01:47.9]} 27. Nd4 {[%clk 0:01:07.5]} 27... Rxd5
{[%clk 0:01:34.1]} 28. exd5 {[%clk 0:01:06.7]} 28... Qxd5 {[%clk 0:01:35]} 29.
Qe3 {[%clk 0:01:02.1]} 29... Qe5 {[%clk 0:01:13.1]} 30. Qxe5 {[%clk 0:00:56]}
30... Bxe5 {[%clk 0:01:14]} 31. Re1 {[%clk 0:00:56.7]} 31... f6 {[%clk
0:01:14.4]} 32. Bxf6 {[%clk 0:00:54.3]} 32... Bxd4 {[%clk 0:01:10.4]} 33. cxd4
{[%clk 0:00:44.2]} 33... Kf7 {[%clk 0:01:04]} 34. Be5 {[%clk 0:00:43.7]} 34...
Rd5 {[%clk 0:01:00.3]} 35. Rc1 {[%clk 0:00:42.9]} 35... Bd7 {[%clk 0:00:59.1]}
36. Rc7 {[%clk 0:00:42.4]} 36... Ke6 {[%clk 0:00:59]} 37. Rxa7 {[%clk
0:00:42.1]} 37... Rb5 {[%clk 0:00:56.2]} 38. h4 {[%clk 0:00:40.6]} 38... h5
{[%clk 0:00:55.6]} 39. Kh2 {[%clk 0:00:40.2]} 39... Rb2 {[%clk 0:00:51.5]} 40.
Kg3 {[%clk 0:00:40.1]} 40... Rc2 {[%clk 0:00:46]} 41. Ra6 {[%clk 0:00:38.3]}
41... Rc6 {[%clk 0:00:45.2]} 42. Ra8 {[%clk 0:00:34.2]} 42... b5 {[%clk
0:00:40.4]} 43. Rb8 {[%clk 0:00:31.1]} 43... Ra6 {[%clk 0:00:20]} 44. Kf4 {[%clk
0:00:27.6]} 44... Ra4 {[%clk 0:00:12.4]} 45. Rb6+ {[%clk 0:00:22.5]} 45... Ke7
{[%clk 0:00:11.7]} 46. g4 {[%clk 0:00:21]} 46... hxg4 {[%clk 0:00:11.6]} 47.
fxg4 {[%clk 0:00:21.4]} 47... b4 {[%clk 0:00:12]} 48. h5 {[%clk 0:00:21.2]}
48... gxh5 {[%clk 0:00:12.9]} 49. gxh5 {[%clk 0:00:21.4]} 49... Ra1 {[%clk
0:00:08.9]} 50. d5 {[%clk 0:00:20.3]} 50... Rf1+ {[%clk 0:00:07.6]} 51. Ke3
{[%clk 0:00:20]} 51... Re1+ {[%clk 0:00:05.6]} 52. Kd4 {[%clk 0:00:20]} 52...
Rb1 {[%clk 0:00:05.3]} 53. Bd6+ {[%clk 0:00:19]} 53... Kf7 {[%clk 0:00:04.5]}
54. Bxb4 {[%clk 0:00:19.9]} 54... Rh1 {[%clk 0:00:03.4]} 55. Rb7 {[%clk
0:00:18.8]} 55... Ke8 {[%clk 0:00:02.5]} 56. Rb8+ {[%clk 0:00:16.7]} 56... Kf7
{[%clk 0:00:02.9]} 57. Rh8 {[%clk 0:00:16.9]} 57... Kg7 {[%clk 0:00:02.7]} 58.
Rd8 {[%clk 0:00:16.5]} 58... Bg4 {[%clk 0:00:02.5]} 59. h6+ {[%clk 0:00:16.1]}
1-0

[Event "*** Titled Tuesday Blitz"]
[Site "Chess.com"]
[Date "2021.03.02"]
[Round "7"]
[White "dopolian"]
[Black "PotapovaM"]
[Result "0-1"]
[WhiteElo "2398"]
[BlackElo "2537"]
[TimeControl "180+1"]
[EndTime "11:19:40 PST"]
[Termination "PotapovaM won by resignation"]

1. e4 {[%clk 0:03:00.9]} 1... c5 {[%clk 0:02:59.8]} 2. Nf3 {[%clk 0:03:01.1]}
2... d6 {[%clk 0:03:00]} 3. d4 {[%clk 0:03:00.8]} 3... cxd4 {[%clk 0:03:00.9]}
4. Nxd4 {[%clk 0:03:01.5]} 4... Nf6 {[%clk 0:03:01.5]} 5. Nc3 {[%clk 0:03:01.6]}
5... a6 {[%clk 0:03:02.3]} 6. h3 {[%clk 0:03:00.3]} 6... e5 {[%clk 0:03:02.6]}
7. Nde2 {[%clk 0:03:00.3]} 7... h5 {[%clk 0:03:01.9]} 8. g3 {[%clk 0:03:00.2]}
8... Be6 {[%clk 0:03:01.5]} 9. Bg2 {[%clk 0:03:00.5]} 9... Nbd7 {[%clk
0:03:02.1]} 10. O-O {[%clk 0:02:58]} 10... b5 {[%clk 0:03:02.3]} 11. Bg5 {[%clk
0:02:55.2]} 11... Be7 {[%clk 0:02:58.5]} 12. a4 {[%clk 0:02:53.8]} 12... b4
{[%clk 0:02:57.8]} 13. Nd5 {[%clk 0:02:49.8]} 13... Nxd5 {[%clk 0:02:51.4]} 14.
exd5 {[%clk 0:02:50.7]} 14... Bf5 {[%clk 0:02:50.2]} 15. Bxe7 {[%clk 0:02:48.7]}
15... Qxe7 {[%clk 0:02:51.1]} 16. c3 {[%clk 0:02:44.9]} 16... a5 {[%clk
0:02:48.5]} 17. cxb4 {[%clk 0:02:44.8]} 17... axb4 {[%clk 0:02:48.6]} 18. Qd2
{[%clk 0:02:34.2]} 18... Nc5 {[%clk 0:02:44.2]} 19. Qxb4 {[%clk 0:02:32.1]}
19... O-O {[%clk 0:02:44.9]} 20. Nc3 {[%clk 0:02:24.2]} 20... Nd3 {[%clk
0:02:33.8]} 21. Qa3 {[%clk 0:02:18.8]} 21... Qd7 {[%clk 0:02:22.6]} 22. Nb5
{[%clk 0:02:07.8]} 22... Ra6 {[%clk 0:02:14.1]} 23. Kh2 {[%clk 0:01:55.3]} 23...
Rfa8 {[%clk 0:01:43.6]} 24. b3 {[%clk 0:01:41.9]} 24... Rb8 {[%clk 0:01:43.6]}
25. Nc3 {[%clk 0:01:21.1]} 25... Qa7 {[%clk 0:01:42.4]} 26. Rad1 {[%clk
0:01:07.6]} 26... Nc5 {[%clk 0:01:31.5]} 27. b4 {[%clk 0:00:53.5]} 27... Nxa4
{[%clk 0:01:29]} 28. Nxa4 {[%clk 0:00:54.4]} 28... Rxa4 {[%clk 0:01:29]} 29. Qf3
{[%clk 0:00:55.1]} 29... Bg6 {[%clk 0:01:23.4]} 30. Rc1 {[%clk 0:00:48.4]} 30...
Raxb4 {[%clk 0:01:19.6]} 31. Rc6 {[%clk 0:00:48.2]} 31... Qe7 {[%clk 0:01:14.1]}
32. h4 {[%clk 0:00:42.4]} 32... Rd4 {[%clk 0:01:01.1]} 33. Qa3 {[%clk 0:00:41]}
33... Rdb4 {[%clk 0:00:43.2]} 34. Rfc1 {[%clk 0:00:38.1]} 34... Qf6 {[%clk
0:00:35.7]} 35. Qa6 {[%clk 0:00:31.6]} 35... Qxf2 {[%clk 0:00:29.5]} 36. Rxd6
{[%clk 0:00:25.3]} 36... Be4 {[%clk 0:00:19.1]} 37. Qf1 {[%clk 0:00:25.5]} 37...
Rb2 {[%clk 0:00:14.6]} 38. Qxf2 {[%clk 0:00:09.2]} 38... Rxf2 {[%clk 0:00:15.5]}
39. Rg1 {[%clk 0:00:07.2]} 39... Rbb2 {[%clk 0:00:16]} 40. Rd8+ {[%clk
0:00:06.7]} 40... Kh7 {[%clk 0:00:16.7]} 41. g4 {[%clk 0:00:05.3]} 41... Bxg2
{[%clk 0:00:14]} 42. gxh5 {[%clk 0:00:04.5]} 42... Bxd5+ {[%clk 0:00:14.2]} 43.
Kg3 {[%clk 0:00:04.9]} 43... Rg2+ {[%clk 0:00:14.1]} 44. Rxg2 {[%clk 0:00:04.7]}
44... Rxg2+ {[%clk 0:00:15]} 45. Kh3 {[%clk 0:00:05.5]} 45... Bf3 {[%clk
0:00:14.9]} 46. h6 {[%clk 0:00:04.3]} 46... Kxh6 {[%clk 0:00:14.1]} 47. h5
{[%clk 0:00:02.9]} 47... Rg4 {[%clk 0:00:09.7]} 48. Rh8+ {[%clk 0:00:02]} 48...
Kg5 {[%clk 0:00:09.6]} 49. Re8 {[%clk 0:00:02.9]} 49... Kf6 {[%clk 0:00:08.9]}
50. h6 {[%clk 0:00:02.2]} 50... gxh6 {[%clk 0:00:08.4]} 51. Rh8 {[%clk
0:00:02.5]} 51... Rg6 {[%clk 0:00:08.3]} 52. Re8 {[%clk 0:00:02]} 52... Bg4+
{[%clk 0:00:08.3]} 53. Kh4 {[%clk 0:00:02.1]} 53... Be6 {[%clk 0:00:09.2]} 54.
Rd8 {[%clk 0:00:02.1]} 54... e4 {[%clk 0:00:09.2]} 55. Rd2 {[%clk 0:00:01.7]}
55... Ke5 {[%clk 0:00:09.7]} 56. Re2 {[%clk 0:00:02]} 56... Kd4 {[%clk
0:00:09.5]} 57. Kh5 {[%clk 0:00:02.5]} 57... Bg4+ {[%clk 0:00:09.2]} 58. Kh4
{[%clk 0:00:03.1]} 58... Bxe2 {[%clk 0:00:09.5]} 0-1

[Event "*** Titled Tuesday Blitz"]
[Site "Chess.com"]
[Date "2021.03.02"]
[Round "7"]
[White "ljuks68"]
[Black "Agoking701"]
[Result "1-0"]
[WhiteElo "2449"]
[BlackElo "2246"]
[TimeControl "180+1"]
[EndTime "11:19:40 PST"]
[Termination "ljuks68 won by resignation"]

1. e4 {[%clk 0:03:00.9]} 1... c5 {[%clk 0:02:58.7]} 2. Nf3 {[%clk 0:03:01]} 2...
e6 {[%clk 0:02:59.1]} 3. d4 {[%clk 0:03:01.5]} 3... cxd4 {[%clk 0:02:59.9]} 4.
Nxd4 {[%clk 0:03:02]} 4... a6 {[%clk 0:02:56.5]} 5. Bd3 {[%clk 0:02:55.9]} 5...
Qc7 {[%clk 0:02:51.6]} 6. Qe2 {[%clk 0:02:55.6]} 6... b6 {[%clk 0:02:43.1]} 7.
c4 {[%clk 0:02:52]} 7... Bb7 {[%clk 0:02:43.4]} 8. Nc3 {[%clk 0:02:51.8]} 8...
d6 {[%clk 0:02:36]} 9. O-O {[%clk 0:02:46.4]} 9... Nd7 {[%clk 0:02:36.3]} 10. f4
{[%clk 0:02:45.5]} 10... Be7 {[%clk 0:02:30.4]} 11. Bd2 {[%clk 0:02:45.5]} 11...
Rc8 {[%clk 0:02:29.5]} 12. Rae1 {[%clk 0:02:44.9]} 12... Bf6 {[%clk 0:02:11.3]}
13. Nf3 {[%clk 0:02:40.1]} 13... e5 {[%clk 0:01:35.5]} 14. f5 {[%clk 0:02:30.6]}
14... Ne7 {[%clk 0:01:30.8]} 15. g4 {[%clk 0:02:27]} 15... h6 {[%clk 0:01:29.5]}
16. h4 {[%clk 0:02:26.8]} 16... g5 {[%clk 0:01:02]} 17. hxg5 {[%clk 0:02:12.3]}
17... hxg5 {[%clk 0:01:00.8]} 18. Nd5 {[%clk 0:02:09.4]} 18... Nxd5 {[%clk
0:00:56.3]} 19. cxd5 {[%clk 0:02:09.4]} 19... Nc5 {[%clk 0:00:41.4]} 20. Rc1
{[%clk 0:02:00.4]} 20... Qd8 {[%clk 0:00:38.1]} 21. Bc2 {[%clk 0:01:58.2]} 21...
Rg8 {[%clk 0:00:24.2]} 22. b4 {[%clk 0:01:56.9]} 22... Nd7 {[%clk 0:00:22.7]}
23. Bd3 {[%clk 0:01:56]} 23... a5 {[%clk 0:00:18.3]} 24. a3 {[%clk 0:01:48.5]}
24... Ke7 {[%clk 0:00:18.1]} 25. Kg2 {[%clk 0:01:39.9]} 25... axb4 {[%clk
0:00:18.2]} 26. axb4 {[%clk 0:01:38.8]} 26... Rxc1 {[%clk 0:00:12.5]} 27. Rxc1
{[%clk 0:01:38]} 27... Qa8 {[%clk 0:00:13.1]} 28. Bb5 {[%clk 0:01:31.6]} 28...
Rc8 {[%clk 0:00:11.9]} 29. Rxc8 {[%clk 0:01:25.4]} 29... Qxc8 {[%clk 0:00:12.8]}
30. Qc4 {[%clk 0:01:25.4]} 30... Qxc4 {[%clk 0:00:12.5]} 31. Bxc4 {[%clk
0:01:25]} 31... Nf8 {[%clk 0:00:09]} 32. Nxg5 {[%clk 0:01:23.3]} 32... Bxg5
{[%clk 0:00:09.1]} 33. Bxg5+ {[%clk 0:01:22.8]} 33... f6 {[%clk 0:00:09.7]} 34.
Be3 {[%clk 0:01:22.4]} 34... Nd7 {[%clk 0:00:07.9]} 35. g5 {[%clk 0:01:22.6]}
35... fxg5 {[%clk 0:00:07.5]} 36. Bxg5+ {[%clk 0:01:22.5]} 36... Kf7 {[%clk
0:00:08]} 37. Be3 {[%clk 0:01:22.4]} 37... Bc8 {[%clk 0:00:05.8]} 38. Kg3 {[%clk
0:01:15.6]} 38... Nf6 {[%clk 0:00:05.8]} 39. Kf3 {[%clk 0:01:13.7]} 39... Nd7
{[%clk 0:00:04.6]} 40. Bb5 {[%clk 0:01:13]} 40... Ke7 {[%clk 0:00:05.1]} 41. Bd3
{[%clk 0:01:08.9]} 41... Kf7 {[%clk 0:00:05.2]} 42. Kg4 {[%clk 0:01:07.8]} 42...
Nf6+ {[%clk 0:00:05.2]} 43. Kg5 {[%clk 0:01:07.6]} 43... Nd7 {[%clk 0:00:05.4]}
44. Be2 {[%clk 0:01:03.3]} 44... Nf6 {[%clk 0:00:05.6]} 45. Bf3 {[%clk
0:01:03.3]} 45... Nd7 {[%clk 0:00:04.9]} 46. Bh5+ {[%clk 0:01:01.2]} 46... Kg7
{[%clk 0:00:04.4]} 47. Bf3 {[%clk 0:01:00.4]} 47... Kf7 {[%clk 0:00:04.2]} 48.
Kh6 {[%clk 0:00:56.9]} 48... Kf6 {[%clk 0:00:04.3]} 49. Bg5+ {[%clk 0:00:55.8]}
49... Kf7 {[%clk 0:00:05]} 50. Bh5+ {[%clk 0:00:55.7]} 50... Kf8 {[%clk
0:00:05.6]} 51. Kg6 {[%clk 0:00:52.4]} 51... Ba6 {[%clk 0:00:05.2]} 52. Bh6+
{[%clk 0:00:51.3]} 52... Ke7 {[%clk 0:00:04.9]} 53. Bg7 {[%clk 0:00:50.9]} 53...
Bd3 {[%clk 0:00:03.1]} 54. f6+ {[%clk 0:00:51.1]} 54... Nxf6 {[%clk 0:00:03.5]}
55. Bxf6+ {[%clk 0:00:50.8]} 55... Kd7 {[%clk 0:00:04.4]} 56. Bf3 {[%clk
0:00:50.3]} 56... b5 {[%clk 0:00:02.8]} 57. Kf7 {[%clk 0:00:49.9]} 57... Bc4
{[%clk 0:00:02.9]} 58. Bg4+ {[%clk 0:00:49]} 58... Kc7 {[%clk 0:00:03.5]} 59.
Ke6 {[%clk 0:00:44.6]} 59... Bd3 {[%clk 0:00:04.1]} 60. Bf5 {[%clk 0:00:44.3]}
60... Bc4 {[%clk 0:00:03.7]} 61. Be7 {[%clk 0:00:44]} 61... Kb6 {[%clk
0:00:04.3]} 62. Bxd6 {[%clk 0:00:43.7]} 62... Ka6 {[%clk 0:00:03.9]} 63. Bc5
{[%clk 0:00:43.4]} 63... Kb7 {[%clk 0:00:03.7]} 64. Kxe5 {[%clk 0:00:43.4]}
64... Bd3 {[%clk 0:00:03.4]} 65. Kd4 {[%clk 0:00:41.7]} 65... Bc2 {[%clk
0:00:03.4]} 66. d6 {[%clk 0:00:41.5]} 66... Kc6 {[%clk 0:00:03.2]} 67. d7 {[%clk
0:00:40.4]} 67... Kc7 {[%clk 0:00:02.9]} 68. Be7 {[%clk 0:00:40.3]} 68... Bxe4
{[%clk 0:00:02.2]} 69. d8=Q+ {[%clk 0:00:39]} 69... Kb7 {[%clk 0:00:02.6]} 70.
Bxe4+ {[%clk 0:00:38.7]} 1-0